bitfinex/quotes_BTCUSD_20240627
["timestamp","ask_amount","ask_price","bid_price","bid_amount"]
[1719447150824,0.41999137,60886.0,60885.0,1.05695054]
[1719447152845,0.42003756,60886.0,60885.0,1.05695054]
[1719447156061,0.41974048,60886.0,60885.0,1.05695054]
[1719447156178,0.41974048,60886.0,60885.0,1.38543854]
[1719447156538,0.41973919,60886.0,60885.0,1.38543854]
[1719447156695,0.41973919,60886.0,60885.0,1.36964072]
[1719447157509,0.4192468,60886.0,60885.0,1.36964072]
[1719447158464,0.4192468,60886.0,60885.0,1.37964072]
[1719447159273,0.41917479,60886.0,60885.0,1.37964072]
[1719447160229,0.41917479,60886.0,60885.0,1.5419797]
[1719447160431,0.38555177,60886.0,60885.0,3.0563521]
[1719447160645,0.38555177,60886.0,60885.0,3.50818736]
[1719447160853,0.38555177,60886.0,60885.0,3.38500107]
[1719447161448,0.38355177,60886.0,60885.0,3.36900107]
[1719447161662,0.36710081,60886.0,60885.0,3.50542398]
[1719447161861,0.20660081,60886.0,60885.0,3.52742398]
[1719447162107,0.20660081,60886.0,60885.0,3.59563465]
[1719447162324,0.20660081,60886.0,60885.0,3.67501341]
[1719447162519,0.20660081,60886.0,60885.0,3.67495513]
[1719447162826,0.16159414,60886.0,60885.0,3.67495513]
[1719447163199,0.16159414,60886.0,60885.0,3.52736634]
[1719447165673,0.16159414,60886.0,60885.0,3.52736631]
[1719447165888,0.16159414,60886.0,60885.0,3.51156849]
[1719447167824,0.16159414,60886.0,60885.0,3.41826849]
[1719447168030,0.16159414,60886.0,60885.0,3.51156849]
[1719447168820,0.16159414,60886.0,60885.0,3.01086788]
[1719447168972,0.16159414,60886.0,60885.0,3.51157]
[1719447170231,0.16159414,60886.0,60885.0,3.63437135]
[1719447170836,0.16159414,60886.0,60885.0,3.63437144]
[1719447172131,0.16159414,60886.0,60885.0,3.01086788]
[1719447172234,0.16159414,60886.0,60885.0,3.63434421]
[1719447172480,0.16159414,60886.0,60885.0,3.70010621]
[1719447172708,0.16159414,60886.0,60885.0,3.56368592]
[1719447173418,0.16159414,60886.0,60885.0,3.44091137]
[1719447175363,0.16159414,60886.0,60885.0,3.06083206]
[1719447175558,0.16159414,60886.0,60885.0,3.42511606]
[1719447175725,0.16159414,60886.0,60885.0,3.42511633]
[1719447176528,0.16159414,60886.0,60885.0,3.42511607]
[1719447177210,0.16159414,60886.0,60885.0,3.52330538]
[1719447177568,0.16159414,60886.0,60885.0,3.42511607]
[1719447177738,0.16159414,60886.0,60885.0,3.52330526]
[1719447178306,0.16159414,60886.0,60885.0,3.42511606]
[1719447178475,0.16159414,60886.0,60885.0,3.6093059]
[1719447178645,0.16159414,60886.0,60885.0,3.60930617]
[1719447178860,0.16159414,60886.0,60885.0,3.05353206]
[1719447179057,0.16159414,60886.0,60885.0,3.14683206]
[1719447179258,0.16159414,60886.0,60885.0,3.19593612]
[1719447181144,0.16159414,60886.0,60885.0,3.14683206]
[1719447181336,0.16159414,60886.0,60885.0,3.19593922]
[1719447181718,0.16159414,60886.0,60885.0,3.14683206]
[1719447182883,0.16159414,60886.0,60885.0,3.51114102]
[1719447183936,0.16159414,60886.0,60885.0,3.74577949]
[1719447184113,0.16159414,60886.0,60885.0,3.64756517]
[1719447184573,0.16159414,60886.0,60885.0,3.50532623]
[1719447184825,0.16159414,60886.0,60885.0,3.64175045]
[1719447184977,0.16159414,60886.0,60885.0,3.64175048]
[1719447185345,0.16159414,60886.0,60885.0,3.73994875]
[1719447185773,0.16159414,60886.0,60885.0,3.73993833]
[1719447187809,0.16159414,60886.0,60885.0,3.27745686]
[1719447188010,0.14956844,60886.0,60885.0,3.64174547]
[1719447189503,0.14956844,60886.0,60885.0,3.70995555]
[1719447189933,0.13816115,60886.0,60885.0,3.70995555]
[1719447190351,0.13816115,60886.0,60885.0,4.05101003]
[1719447191223,0.13816115,60886.0,60885.0,4.0510008]
[1719447191840,0.12844673,60886.0,60885.0,4.0510008]
[1719447192420,0.12844673,60886.0,60885.0,4.17374211]
[1719447193665,0.11286965,60886.0,60885.0,4.17374211]
[1719447193921,0.11286965,60886.0,60885.0,4.15794429]
[1719447194370,0.09992085,60886.0,60885.0,3.4662909]
[1719447194592,0.09992085,60886.0,60885.0,4.1579929]
[1719447194816,0.09992085,60886.0,60885.0,4.15799619]
[1719447195058,0.08866772,60886.0,60885.0,4.15799619]
[1719447195489,0.08866772,60886.0,60885.0,4.03520235]
[1719447197697,0.08866772,60886.0,60885.0,4.03520127]
[1719447200724,0.08866772,60886.0,60885.0,4.03612527]
[1719447200930,0.08866772,60886.0,60885.0,4.03612493]
[1719447203286,0.08866772,60886.0,60885.0,4.18369367]
[1719447204281,0.08866772,60886.0,60885.0,4.03612493]
[1719447204505,0.08866772,60886.0,60885.0,4.54611731]
[1719447204705,0.08866772,60886.0,60885.0,4.03612493]
[1719447205358,0.08866772,60886.0,60885.0,4.54611731]
[1719447207760,0.08866772,60886.0,60885.0,4.54611811]
[1719447208650,0.08866772,60886.0,60885.0,4.53032029]
[1719447217374,0.08866772,60886.0,60885.0,4.39390038]
[1719447217676,0.08866772,60886.0,60885.0,4.53032032]
[1719447218134,0.08866772,60886.0,60885.0,4.5145225]
[1719447218909,0.00084,60897.0,60896.0,1.897926]
[1719447219156,0.00084,60897.0,60896.0,2.48396547]
[1719447219380,0.00084,60897.0,60896.0,2.57726547]
[1719447219578,0.00084,60897.0,60896.0,2.77726547]
[1719447220108,0.00084,60897.0,60896.0,2.57726547]
[1719447220310,0.00184,60897.0,60896.0,2.59126547]
[1719447220539,0.00184,60897.0,60896.0,2.22698492]
[1719447220741,0.00184,60897.0,60896.0,2.59122828]
[1719447221835,0.00184,60897.0,60896.0,2.60522828]
[1719447222738,0.00184,60897.0,60896.0,2.68653174]
[1719447223812,0.00184,60897.0,60896.0,2.6865317]
[1719447224212,0.00184,60897.0,60896.0,2.68651777]
[1719447227135,0.00184,60897.0,60896.0,2.32227444]
[1719447227462,0.00184,60897.0,60896.0,2.67071995]
[1719447227698,0.00184,60897.0,60896.0,2.87071995]
[1719447229896,0.5381988,60929.0,60901.0,0.01]
[1719447230093,0.164158,60917.0,60914.0,0.164165]
[1719447230296,0.01862661,60916.0,60914.0,0.164165]
[1719447230512,0.164158,60917.0,60914.0,0.164165]
[1719447230513,0.01867467,60915.0,60914.0,0.164165]
[1719447230913,0.01867467,60917.0,60914.0,0.164165]
[1719447232641,0.01867467,60917.0,60914.0,0.165165]
[1719447233061,0.0669,60915.0,60914.0,0.166165]
[1719447233260,0.17367467,60915.0,60914.0,0.166165]
[1719447233796,0.17366677,60915.0,60914.0,0.166165]
[1719447233952,0.17366677,60915.0,60914.0,0.165165]
[1719447234184,0.155,60915.0,60914.0,0.165165]
[1719447234343,0.17366679,60915.0,60914.0,0.165165]
[1719447234775,0.17366679,60915.0,60914.0,0.821827]
[1719447234990,0.155,60915.0,60914.0,0.821827]
[1719447235191,0.155,60915.0,60914.0,1.150158]
[1719447235192,0.17365484,60915.0,60914.0,1.150158]
[1719447235455,0.155,60915.0,60914.0,1.150158]
[1719447235892,0.155,60915.0,60914.0,1.149158]
[1719447236552,0.155,60915.0,60914.0,1.13336018]
[1719447237563,0.155,60915.0,60914.0,1.22666018]
[1719447243153,0.328272,60925.0,60919.0,0.328303]
[1719447243384,0.83886362,60924.0,60920.0,0.164148]
[1719447243586,0.01814462,60923.0,60920.0,0.164148]
[1719447243791,0.65658,60922.0,60920.0,0.164148]
[1719447243990,0.01814462,60921.0,60920.0,0.164148]
[1719447244197,0.67472462,60921.0,60920.0,0.164148]
[1719447245810,0.67472462,60921.0,60920.0,0.14835018]
[1719447246160,0.74488,60921.0,60920.0,0.14935018]
[1719447246281,0.47183334,60921.0,60920.0,0.14935018]
[1719447247139,0.47183334,60921.0,60920.0,0.001]
[1719447247315,0.47183334,60921.0,60920.0,0.002]
[1719447249497,0.63618063,60921.0,60920.0,0.002]
[1719447252589,0.63614843,60921.0,60920.0,0.002]
[1719447253000,0.63614842,60921.0,60920.0,0.002]
[1719447254448,0.32366221,60921.0,60920.0,0.002]
[1719447255203,0.23536221,60921.0,60917.0,0.15035918]
[1719447255408,0.10813579,60920.0,60917.0,0.15035918]
[1719447255607,0.07803579,60919.0,60917.0,0.15035918]
[1719447255804,0.01834051,60918.0,60917.0,0.15035918]
[1719447256040,0.01834051,60918.0,60915.0,0.164161]
[1719447256240,0.0597,60917.0,60915.0,0.164161]
[1719447256420,0.01834051,60916.0,60915.0,0.164161]
[1719447256747,0.01834051,60916.0,60915.0,0.492487]
[1719447259157,0.01835398,60916.0,60915.0,0.492487]
[1719447260596,0.01835398,60916.0,60914.0,0.164165]
[1719447260802,0.0301,60915.0,60914.0,0.164165]
[1719447260980,0.04845398,60915.0,60911.0,0.328345]
[1719447261183,0.388016,60917.0,60911.0,0.328345]
[1719447261184,0.0918,60913.0,60911.0,0.328345]
[1719447261405,0.01835398,60912.0,60911.0,0.492518]
[1719447261807,0.0918,60913.0,60912.0,0.164171]
[1719447262150,0.10969367,60913.0,60912.0,0.164171]
[1719447262555,0.10969367,60913.0,60912.0,0.492513]
[1719447262686,0.07984939,60913.0,60912.0,0.492513]
[1719447264369,0.01814939,60913.0,60912.0,0.492513]
[1719447264568,0.01826263,60914.0,60913.0,0.164168]
[1719447264818,0.01826264,60914.0,60913.0,0.492505]
[1719447265578,0.01826264,60914.0,60911.0,0.328345]
[1719447265579,0.164166,60914.0,60910.0,0.164175]
[1719447265780,0.11015643,60913.0,60909.0,0.164178]
[1719447265983,0.01835643,60912.0,60910.0,0.164176]
[1719447267451,0.01835643,60912.0,60910.0,0.165176]
[1719447268902,0.0918,60913.0,60910.0,0.165176]
[1719447268903,0.01931915,60911.0,60910.0,0.165176]
[1719447269317,0.01931915,60912.0,60910.0,0.165176]
[1719447270752,0.01931915,60912.0,60910.0,0.166176]
[1719447271205,0.01931915,60912.0,60910.0,0.165176]
[1719447272127,0.01936897,60911.0,60910.0,0.165176]
[1719447272340,0.01936897,60912.0,60910.0,0.165176]
[1719447272546,0.01936916,60911.0,60910.0,0.165176]
[1719447273030,0.01936916,60912.0,60910.0,0.165176]
[1719447273650,0.01936916,60912.0,60910.0,0.164176]
[1719447273882,0.01936916,60912.0,60910.0,0.15289322]
[1719447274200,0.01936916,60912.0,60910.0,0.15489322]
[1719447275296,0.0918,60913.0,60910.0,0.15489322]
[1719447275492,0.01936133,60912.0,60910.0,0.15489322]
[1719447276087,0.01936133,60912.0,60909.0,0.164178]
[1719447276438,0.01936133,60912.0,60910.0,0.001]
[1719447277085,0.01936133,60912.0,60909.0,0.164178]
[1719447278091,0.01936133,60912.0,60909.0,0.165178]
[1719447278676,0.01939878,60911.0,60909.0,0.165178]
[1719447278872,0.01939878,60910.0,60909.0,0.165178]
[1719447279286,0.01939878,60912.0,60909.0,0.165178]
[1719447279494,0.01939878,60911.0,60909.0,0.165178]
[1719447279699,0.01939878,60910.0,60909.0,0.165178]
[1719447279878,0.01939878,60912.0,60909.0,0.164178]
[1719447280227,0.01939878,60912.0,60909.0,0.168178]
[1719447280428,0.01939878,60912.0,60909.0,0.169178]
[1719447281061,0.01939878,60912.0,60909.0,0.164178]
[1719447281430,0.01939878,60912.0,60909.0,0.165178]
[1719447281838,0.255968,60913.0,60909.0,0.165178]
[1719447281839,0.01944914,60911.0,60909.0,0.165178]
[1719447282050,0.01944914,60910.0,60909.0,0.165178]
[1719447282434,0.01944912,60910.0,60909.0,0.165178]
[1719447282836,0.01944912,60910.0,60909.0,0.164178]
[1719447283165,0.01944912,60910.0,60909.0,0.15138018]
[1719447283363,0.01944912,60910.0,60909.0,0.14838018]
[1719447283831,0.01944912,60910.0,60909.0,0.15338018]
[1719447284285,0.01944912,60910.0,60909.0,0.15238018]
[1719447284539,0.01944912,60912.0,60909.0,0.15238018]
[1719447284762,0.01944912,60911.0,60909.0,0.15238018]
[1719447284989,0.01944912,60910.0,60909.0,0.15438018]
[1719447285231,0.01944849,60912.0,60909.0,0.15438018]
[1719447285442,0.01944849,60911.0,60909.0,0.15438018]
[1719447285668,0.01944849,60910.0,60909.0,0.15438018]
[1719447285952,0.0918,60913.0,60910.0,0.164176]
[1719447286174,0.01945095,60912.0,60911.0,0.164173]
[1719447286416,0.01945095,60913.0,60911.0,0.164173]
[1719447286638,0.01945095,60912.0,60911.0,0.58122]
[1719447286861,0.01945095,60912.0,60911.0,0.252873]
[1719447287083,0.01974629,60914.0,60912.0,0.16417]
[1719447287352,0.01974613,60913.0,60912.0,0.16417]
[1719447287574,0.01974613,60915.0,60912.0,0.16417]
[1719447287809,0.164161,60916.0,60912.0,0.16417]
[1719447287810,0.01974613,60914.0,60912.0,0.16417]
[1719447288036,0.01974613,60913.0,60912.0,0.16417]
[1719447288287,0.164161,60916.0,60912.0,0.16417]
[1719447288497,0.18415725,60915.0,60911.0,0.164173]
[1719447288672,0.01999425,60914.0,60911.0,0.164173]
[1719447291509,0.019908,60913.0,60911.0,0.164173]
[1719447291691,0.164163,60915.0,60911.0,0.164173]
[1719447291692,0.019908,60912.0,60911.0,0.164173]
[1719447291889,0.01995995,60912.0,60911.0,0.164173]
[1719447292214,0.01995995,60914.0,60911.0,0.164173]
[1719447292582,0.01995995,60914.0,60911.0,0.14837518]
[1719447293124,0.01995995,60914.0,60911.0,0.14937518]
[1719447294690,0.164163,60915.0,60911.0,0.14937518]
[1719447294896,0.01941231,60914.0,60911.0,0.14937518]
[1719447295099,0.492513,60912.0,60911.0,0.001]
[1719447295300,1.44888873,60912.0,60911.0,0.001]
[1719447295546,1.55501355,60912.0,60911.0,0.001]
[1719447295948,0.1141,60905.0,60900.0,0.164203]
[1719447296172,0.07229173,60904.0,60900.0,0.164203]
[1719447296375,0.0189684,60903.0,60898.0,0.161]
[1719447296526,0.0189684,60903.0,60898.0,0.0881]
[1719447296527,0.3473604,60903.0,60898.0,0.0881]
[1719447296747,0.164201,60901.0,60896.0,0.31611446]
[1719447296943,0.21707742,60902.0,60897.0,0.164209]
[1719447297745,0.1642,60901.0,60897.0,0.164209]
[1719447297986,0.05287942,60900.0,60897.0,0.164209]
[1719447299271,0.05287942,60900.0,60897.0,0.167209]
[1719447299789,0.05287942,60900.0,60897.0,0.175209]
[1719447300205,0.05287942,60900.0,60898.0,0.164207]
[1719447300829,0.05287942,60900.0,60899.0,0.161]
[1719447301121,0.05287942,60900.0,60899.0,1.07533]
[1719447301878,0.05287942,60900.0,60899.0,1.05953218]
[1719447302850,0.05287942,60900.0,60899.0,0.96623218]
[1719447303045,0.05287942,60900.0,60899.0,0.97123218]
[1719447303269,0.05287942,60900.0,60899.0,0.173206]
[1719447303477,0.05287942,60900.0,60899.0,0.009]
[1719447305617,0.164199,60902.0,60899.0,0.009]
[1719447306469,0.01821697,60901.0,60898.0,0.164208]
[1719447306666,0.01821708,60901.0,60898.0,0.164208]
[1719447306999,0.01821708,60901.0,60899.0,0.004]
[1719447307484,0.01821708,60901.0,60899.0,0.003]
[1719447307698,0.01821708,60901.0,60898.0,0.165208]
[1719447308254,0.01821708,60901.0,60898.0,0.164208]
[1719447308787,0.01821708,60901.0,60899.0,0.003]
[1719447309956,0.01854077,60900.0,60898.0,0.168208]
[1719447310167,0.01854077,60899.0,60898.0,0.164208]
[1719447310368,0.01853411,60901.0,60898.0,0.167208]
[1719447310924,0.01853411,60901.0,60898.0,0.164208]
[1719447311079,0.01853411,60901.0,60898.0,0.15241018]
[1719447311317,0.01823598,60900.0,60898.0,0.15241018]
[1719447311522,0.01823598,60899.0,60898.0,0.15241018]
[1719447311722,0.01823598,60899.0,60898.0,0.14841018]
[1719447311921,0.164203,60900.0,60897.0,0.000924]
[1719447312127,0.492627,60898.0,60897.0,0.000924]
[1719447312357,0.51086298,60898.0,60897.0,0.000924]
[1719447312609,0.87518098,60898.0,60897.0,0.000924]
[1719447313053,0.88498919,60898.0,60897.0,0.000924]
[1719447313267,0.87498919,60898.0,60897.0,0.000924]
[1719447313474,0.87498919,60898.0,60897.0,0.002924]
[1719447313704,0.87498919,60898.0,60897.0,0.000924]
[1719447314134,0.87498919,60898.0,60897.0,0.002924]
[1719447314568,1.22340719,60898.0,60897.0,0.002924]
[1719447314776,1.34000719,60898.0,60897.0,0.002924]
[1719447314996,2.00684719,60898.0,60897.0,0.002924]
[1719447316166,2.00619717,60898.0,60897.0,0.002924]
[1719447316398,1.98619717,60898.0,60897.0,0.002924]
[1719447316810,2.16853088,60898.0,60897.0,0.002924]
[1719447317010,2.16853088,60898.0,60897.0,0.000924]
[1719447317881,2.16853088,60898.0,60897.0,0.001924]
[1719447318102,2.07523088,60898.0,60897.0,0.001924]
[1719447318316,2.07523088,60898.0,60897.0,0.002924]
[1719447318317,2.16853088,60898.0,60897.0,0.002924]
[1719447318719,2.16853088,60898.0,60897.0,0.001924]
[1719447319176,2.75370209,60898.0,60897.0,0.000924]
[1719447319430,2.66040111,60898.0,60897.0,0.001924]
[1719447319679,2.75370111,60898.0,60897.0,0.001924]
[1719447319909,2.62168906,60898.0,60897.0,0.001924]
[1719447320170,2.6588749,60898.0,60897.0,0.001924]
[1719447320381,2.8588749,60898.0,60897.0,0.001924]
[1719447320585,0.492715,60887.0,60886.0,0.07545018]
[1719447320803,0.51074197,60887.0,60886.0,0.07545018]
[1719447322397,0.51170873,60887.0,60886.0,0.07545018]
[1719447323938,0.51170873,60887.0,60886.0,0.14395018]
[1719447324140,0.51170873,60887.0,60886.0,0.14595018]
[1719447324373,0.164238,60887.0,60886.0,0.14595018]
[1719447324568,0.166238,60887.0,60886.0,0.14595018]
[1719447325725,0.494715,60887.0,60886.0,0.14595018]
[1719447326135,0.494715,60887.0,60886.0,0.14395018]
[1719447326558,0.492715,60887.0,60886.0,0.14695018]
[1719447326761,0.492715,60887.0,60886.0,0.14395018]
[1719447327188,0.492715,60887.0,60886.0,0.14695018]
[1719447327815,0.492715,60887.0,60886.0,0.14795018]
[1719447328707,0.492715,60887.0,60886.0,0.004]
[1719447328708,0.93717194,60887.0,60886.0,0.004]
[1719447328936,1.02047704,60887.0,60886.0,0.004]
[1719447329335,1.001492,60887.0,60886.0,0.004]
[1719447329536,1.67719865,60887.0,60886.0,0.004]
[1719447329743,1.67719865,60887.0,60886.0,0.001]
[1719447329946,0.492723,60886.0,60885.0,0.000924]
[1719447330184,0.174246,60885.0,60880.0,0.15080948]
[1719447330387,0.821087,60884.0,60880.0,0.15080948]
[1719447333642,0.821087,60884.0,60880.0,0.15180948]
[1719447334481,0.821087,60884.0,60880.0,0.001]
[1719447334859,0.18336384,60883.0,60880.0,0.001]
[1719447335080,0.164249,60883.0,60880.0,0.001]
[1719447335986,0.164249,60883.0,60879.0,0.164259]
[1719447336184,0.01906736,60882.0,60879.0,0.164259]
[1719447336418,0.164249,60883.0,60879.0,0.164259]
[1719447336588,0.01912811,60882.0,60880.0,0.004]
[1719447336815,0.164249,60883.0,60880.0,0.001]
[1719447337358,0.164249,60883.0,60880.0,0.000924]
[1719447337896,0.164249,60883.0,60880.0,0.004924]
[1719447338098,0.01906064,60882.0,60880.0,0.004924]
[1719447338704,0.164249,60883.0,60880.0,0.004924]
[1719447338937,0.01906991,60882.0,60880.0,0.004924]
[1719447339110,0.164249,60883.0,60879.0,0.15638518]
[1719447339311,0.0190699,60882.0,60879.0,0.15338518]
[1719447339674,0.0190699,60882.0,60880.0,0.004]
[1719447339944,0.0190699,60882.0,60880.0,0.001]
[1719447340154,0.0190699,60882.0,60879.0,0.15338518]
[1719447340581,0.0190699,60882.0,60880.0,0.004]
[1719447341247,0.0190699,60882.0,60879.0,0.15338518]
[1719447341972,0.164249,60883.0,60879.0,0.15338518]
[1719447342149,0.01869364,60882.0,60879.0,0.15338518]
[1719447342737,0.01869364,60881.0,60879.0,0.15938518]
[1719447342952,0.01869364,60880.0,60879.0,0.15938518]
[1719447343606,0.01869364,60883.0,60879.0,0.15338518]
[1719447343806,0.01869364,60882.0,60879.0,0.15338518]
[1719447344013,0.01869364,60882.0,60879.0,0.16238518]
[1719447344218,0.01869364,60882.0,60879.0,0.15738518]
[1719447344414,0.01869364,60882.0,60878.0,0.322162]
[1719447344619,0.01869364,60882.0,60879.0,0.006]
[1719447345239,0.164252,60882.0,60879.0,0.006]
[1719447345424,0.01887461,60881.0,60879.0,0.006]
[1719447345796,0.01887461,60881.0,60879.0,0.007]
[1719447346006,0.01887461,60881.0,60879.0,0.001]
[1719447346214,0.01887461,60881.0,60879.0,0.005]
[1719447346412,0.01887461,60881.0,60879.0,0.004]
[1719447346859,0.01887461,60881.0,60879.0,0.013]
[1719447347855,0.18313161,60881.0,60879.0,0.013]
[1719447348041,0.01887461,60880.0,60879.0,0.013]
[1719447348271,0.51164661,60880.0,60879.0,0.013]
[1719447348509,1.1683362,60880.0,60879.0,0.013]
[1719447348751,1.1683362,60880.0,60879.0,0.005]
[1719447348964,0.49278,60879.0,60878.0,0.15510218]
[1719447349183,1.16723671,60879.0,60878.0,0.15510218]
[1719447350346,1.16723671,60879.0,60878.0,0.16110218]
[1719447350563,1.16723671,60879.0,60878.0,0.0967]
[1719447350761,1.16723671,60879.0,60878.0,0.1017]
[1719447351604,1.49575671,60879.0,60878.0,0.011]
[1719447351815,1.49638639,60879.0,60878.0,0.011]
[1719447353128,1.49638639,60879.0,60878.0,0.005]
[1719447353359,1.7463201,60879.0,60878.0,0.005]
[1719447353566,1.7463201,60879.0,60876.0,0.000924]
[1719447353567,0.821327,60877.0,60876.0,0.000924]
[1719447353692,0.83957339,60877.0,60876.0,0.000924]
[1719447353899,0.95287339,60877.0,60876.0,0.000924]
[1719447354131,1.6437381,60877.0,60876.0,0.000924]
[1719447354306,2.44461025,60877.0,60876.0,0.000924]
[1719447354702,2.60694923,60877.0,60876.0,0.000924]
[1719447354929,2.60902283,60877.0,60876.0,0.000924]
[1719447355109,2.93755383,60877.0,60876.0,0.000924]
[1719447355786,2.55328883,60877.0,60872.0,0.06570975]
[1719447355986,2.55328883,60877.0,60871.0,0.000924]
[1719447355987,0.844979,60872.0,60871.0,0.000924]
[1719447356197,2.49802612,60872.0,60871.0,0.000924]
[1719447356384,3.24844212,60872.0,60871.0,0.000924]
[1719447356949,3.24844212,60872.0,60868.0,0.009229]
[1719447356950,1.69856,60870.0,60868.0,0.009229]
[1719447357159,2.84442483,60870.0,60868.0,0.009229]
[1719447357827,2.071683,60869.0,60868.0,0.00266018]
[1719447358018,3.35027902,60869.0,60868.0,0.00266018]
[1719447358201,4.03042702,60869.0,60868.0,0.00266018]
[1719447358396,4.19276852,60869.0,60868.0,0.00266018]
[1719447358821,4.12088849,60869.0,60868.0,0.00266018]
[1719447359037,4.19140162,60869.0,60868.0,0.00266018]
[1719447359457,0.7930448,60863.0,60847.0,0.4688]
[1719447359654,2.73348986,60863.0,60838.0,0.15600346]
[1719447359855,3.52846278,60863.0,60838.0,0.15600346]
[1719447360054,3.88032819,60863.0,60838.0,0.15600346]
[1719447360210,1.160614,60837.0,60836.0,0.48782074]
[1719447360413,1.849654,60837.0,60836.0,0.48782074]
[1719447360626,0.164389,60831.0,60830.0,0.0943]
[1719447361451,0.16438,60835.0,60830.0,0.0943]
[1719447361735,0.66032718,60837.0,60834.0,0.0933]
[1719447361939,0.65684,60837.0,60836.0,0.0933]
[1719447362108,0.65684,60837.0,60836.0,0.182]
[1719447362279,0.65684,60837.0,60836.0,0.346376]
[1719447362478,0.65684,60837.0,60836.0,1.00388]
[1719447362705,0.65684,60837.0,60836.0,1.21968]
[1719447363325,0.65684,60837.0,60836.0,0.890928]
[1719447363904,0.65784,60837.0,60836.0,0.890928]
[1719447364392,0.65884,60837.0,60836.0,0.895928]
[1719447364597,0.65884,60837.0,60836.0,1.22468]
[1719447365051,0.65784,60837.0,60836.0,1.22468]
[1719447365517,0.65884,60837.0,60836.0,1.22868]
[1719447365974,0.65884,60837.0,60836.0,1.71977098]
[1719447366565,0.65884,60837.0,60836.0,1.48597098]
[1719447366785,0.65884,60837.0,60836.0,1.71977098]
[1719447367233,0.65884,60837.0,60836.0,0.97908218]
[1719447370541,0.65884,60837.0,60836.0,1.30783418]
[1719447374030,0.65884,60837.0,60836.0,1.47017316]
[1719447375037,0.65884,60837.0,60836.0,1.79892516]
[1719447375246,0.65884,60837.0,60836.0,2.12792516]
[1719447375247,0.65784,60837.0,60836.0,2.12792516]
[1719447375447,0.48844,60837.0,60836.0,2.13792516]
[1719447375667,0.328595,60866.0,60836.0,2.13792516]
[1719447375668,0.48782074,60868.0,60847.0,0.328693]
[1719447375879,0.164297,60866.0,60861.0,0.164306]
[1719447376701,0.164297,60866.0,60861.0,0.14830818]
[1719447377184,0.0707,60870.0,60861.0,0.0702]
[1719447377386,0.0707,60870.0,60867.0,0.164292]
[1719447377587,0.0707,60870.0,60867.0,0.328582]
[1719447377762,0.01,60876.0,60869.0,0.164286]
[1719447377763,0.0687,60873.0,60869.0,0.164286]
[1719447378023,0.0687,60873.0,60867.0,0.16429]
[1719447378263,0.16428,60872.0,60867.0,0.16429]
[1719447378508,0.16428,60872.0,60868.0,0.164289]
[1719447378736,0.004,60870.0,60868.0,0.164289]
[1719447378958,0.004,60870.0,60867.0,0.001]
[1719447379196,0.164282,60871.0,60866.0,0.164293]
[1719447379430,0.164282,60871.0,60867.0,0.001]
[1719447379655,0.164282,60871.0,60866.0,0.164293]
[1719447379895,0.0787,60873.0,60867.0,0.001]
[1719447379896,0.01,60870.0,60867.0,0.001]
[1719447380390,0.328543,60875.0,60866.0,0.328589]
[1719447380631,0.49088698,60874.0,60866.0,0.328589]
[1719447381168,0.49088698,60874.0,60868.0,0.165289]
[1719447381169,0.164277,60873.0,60868.0,0.165289]
[1719447381412,0.5731448,60884.0,60869.0,0.97063846]
[1719447381413,0.004,60870.0,60869.0,0.97063846]
[1719447381645,0.012,60871.0,60870.0,0.164284]
[1719447381890,0.012,60871.0,60870.0,0.821422]
[1719447383046,0.164261,60879.0,60874.0,0.164273]
[1719447384378,0.164263,60878.0,60874.0,0.164273]
[1719447384849,0.65707,60877.0,60874.0,0.164273]
[1719447385455,0.65707,60877.0,60874.0,0.165273]
[1719447385826,0.65707,60877.0,60874.0,0.164273]
[1719447386039,0.65707,60877.0,60874.0,0.14827518]
[1719447386232,0.66207,60877.0,60874.0,0.14927518]
[1719447387029,0.66207,60877.0,60874.0,0.15027518]
[1719447387653,0.66207,60877.0,60874.0,0.14927518]
[1719447388063,0.850336,60877.0,60874.0,0.002]
[1719447388268,0.840336,60877.0,60874.0,0.002]
[1719447395148,0.840336,60877.0,60873.0,0.15027818]
[1719447395548,0.840336,60877.0,60872.0,0.164278]
[1719447396521,0.821336,60877.0,60872.0,0.164278]
[1719447396713,0.835336,60877.0,60873.0,0.001]
[1719447397343,0.835336,60877.0,60872.0,0.164278]
[1719447397344,0.821336,60877.0,60872.0,0.164278]
[1719447397545,0.821336,60877.0,60872.0,0.165278]
[1719447397750,0.835336,60877.0,60872.0,0.165278]
[1719447397954,0.164268,60876.0,60872.0,0.166278]
[1719447398152,0.164268,60876.0,60872.0,0.164278]
[1719447398153,0.65707,60875.0,60872.0,0.164278]
[1719447398357,0.65707,60875.0,60873.0,0.001]
[1719447399806,0.65707,60875.0,60872.0,0.165278]
[1719447400628,0.65707,60875.0,60872.0,0.164278]
[1719447400836,0.66607,60875.0,60873.0,0.001]
[1719447401500,0.66307,60875.0,60873.0,0.001]
[1719447401705,0.67207,60875.0,60873.0,0.001]
[1719447402386,0.836341,60875.0,60873.0,0.001]
[1719447403316,0.01626502,60874.0,60873.0,0.001]
[1719447403734,0.01626502,60874.0,60873.0,0.002]
[1719447404204,0.01626502,60874.0,60873.0,0.001]
[1719447404449,0.82895102,60874.0,60873.0,0.001]
[1719447404661,0.164295,60866.0,60861.0,0.164306]
[1719447404874,0.65707,60865.0,60861.0,0.164306]
[1719447405909,0.65707,60865.0,60861.0,0.166306]
[1719447406138,0.65707,60865.0,60861.0,0.164306]
[1719447406267,0.01570861,60864.0,60861.0,0.164306]
[1719447406497,0.65707,60865.0,60861.0,0.164306]
[1719447406861,0.65707,60865.0,60861.0,0.171306]
[1719447406862,0.01605883,60864.0,60861.0,0.171306]
[1719447407090,0.01605883,60864.0,60861.0,0.007]
[1719447407323,0.01605883,60864.0,60862.0,0.164303]
[1719447407548,0.01605883,60864.0,60863.0,0.164303]
[1719447407777,0.01605883,60864.0,60863.0,0.989715]
[1719447408013,0.65707,60865.0,60864.0,0.502901]
[1719447408247,0.65707,60865.0,60864.0,0.831502]
[1719447409343,0.65707,60865.0,60864.0,0.903702]
[1719447409793,0.65707,60865.0,60864.0,0.906702]
[1719447411427,0.65707,60865.0,60864.0,0.896702]
[1719447411581,0.65707,60865.0,60864.0,0.910702]